[Event "Late-Titled-Tuesday-Blitz-August-29-2023"]
[Site "Chess.com"]
[Date "2023.08.29"]
[Round "9"]
[White "tteshan"]
[Black "viktorgen2021"]
[Result "1-0"]
[WhiteElo "2565"]
[BlackElo "2429"]
[TimeControl "180+1"]
[EndTime "15:43:27 PDT"]
[Termination "tteshan won on time"]

1. e4 {[%clk 0:03:00.9]} 1... c6 {[%clk 0:02:47.9]} 2. d4 {[%clk 0:03:00.7]}
2... d5 {[%clk 0:02:46.7]} 3. Nc3 {[%clk 0:03:01]} 3... dxe4 {[%clk 0:02:46.4]}
4. Nxe4 {[%clk 0:03:01.9]} 4... Nf6 {[%clk 0:02:45.3]} 5. Nxf6+ {[%clk
0:03:01.6]} 5... exf6 {[%clk 0:02:46.2]} 6. c3 {[%clk 0:03:01.5]} 6... Bd6
{[%clk 0:02:46]} 7. Bd3 {[%clk 0:03:01.7]} 7... O-O {[%clk 0:02:46.3]} 8. Ne2
{[%clk 0:03:02.3]} 8... Re8 {[%clk 0:02:46]} 9. O-O {[%clk 0:03:02.3]} 9... Nd7
{[%clk 0:02:45.7]} 10. Ng3 {[%clk 0:03:00.2]} 10... Nf8 {[%clk 0:02:44.9]} 11.
f4 {[%clk 0:03:00.5]} 11... g6 {[%clk 0:02:39.8]} 12. f5 {[%clk 0:02:57.4]}
12... Qc7 {[%clk 0:02:35.4]} 13. fxg6 {[%clk 0:02:52.2]} 13... hxg6 {[%clk
0:02:34.9]} 14. Ne4 {[%clk 0:02:38]} 14... Bxh2+ {[%clk 0:02:32.4]} 15. Kh1
{[%clk 0:02:38.2]} 15... Nh7 {[%clk 0:02:25.7]} 16. Nxf6+ {[%clk 0:02:14.1]}
16... Nxf6 {[%clk 0:02:25.2]} 17. Rxf6 {[%clk 0:02:15]} 17... Qg3 {[%clk
0:02:11.1]} 18. Bf4 {[%clk 0:01:26.4]} 18... Qh4 {[%clk 0:01:59.6]} 19. Rxg6+
{[%clk 0:01:26.2]} 19... fxg6 {[%clk 0:01:58.6]} 20. Bxh2 {[%clk 0:01:26.9]}
20... Bf5 {[%clk 0:01:46.4]} 21. Bc4+ {[%clk 0:01:24.8]} 21... Kg7 {[%clk
0:01:41.4]} 22. Kg1 {[%clk 0:01:21.8]} 22... Rad8 {[%clk 0:01:27.5]} 23. Qf1
{[%clk 0:01:06.4]} 23... Kh7 {[%clk 0:01:00.4]} 24. Be5 {[%clk 0:00:56.6]} 24...
c5 {[%clk 0:00:47.2]} 25. Bb5 {[%clk 0:00:30.4]} 25... Re7 {[%clk 0:00:45.4]}
26. Qf3 {[%clk 0:00:26.9]} 26... cxd4 {[%clk 0:00:38.6]} 27. cxd4 {[%clk
0:00:24.2]} 27... Rxd4 {[%clk 0:00:36.5]} 28. Bxd4 {[%clk 0:00:21.5]} 28...
Qxd4+ {[%clk 0:00:37.4]} 29. Qf2 {[%clk 0:00:20.6]} 29... Qb4 {[%clk 0:00:26.4]}
30. Bf1 {[%clk 0:00:18.3]} 30... Re4 {[%clk 0:00:19.2]} 31. Rd1 {[%clk
0:00:17.8]} 31... Rf4 {[%clk 0:00:19.5]} 32. Qe3 {[%clk 0:00:11.9]} 32... Re4
{[%clk 0:00:16.1]} 33. Qg3 {[%clk 0:00:09.2]} 33... Qc5+ {[%clk 0:00:12.3]} 34.
Qf2 {[%clk 0:00:08.8]} 34... Qe7 {[%clk 0:00:12.3]} 35. Rd2 {[%clk 0:00:07.2]}
35... Re1 {[%clk 0:00:10.9]} 36. Rd4 {[%clk 0:00:05.9]} 36... Re4 {[%clk
0:00:10.1]} 37. Rxe4 {[%clk 0:00:05]} 37... Qxe4 {[%clk 0:00:10.6]} 38. Qxa7
{[%clk 0:00:05.5]} 38... Qd5 {[%clk 0:00:09.1]} 39. Qf2 {[%clk 0:00:05.9]} 39...
Qxa2 {[%clk 0:00:09]} 40. Qh4+ {[%clk 0:00:05.6]} 40... Kg7 {[%clk 0:00:08.3]}
41. Qd4+ {[%clk 0:00:05]} 41... Kh6 {[%clk 0:00:08.2]} 42. Qe3+ {[%clk
0:00:04.6]} 42... Kg7 {[%clk 0:00:08.5]} 43. Qe7+ {[%clk 0:00:04.4]} 43... Kh6
{[%clk 0:00:08.9]} 44. Qxb7 {[%clk 0:00:04.1]} 44... Qb1 {[%clk 0:00:07.4]} 45.
Qb5 {[%clk 0:00:03.7]} 45... Qc1 {[%clk 0:00:06.7]} 46. Qe2 {[%clk 0:00:03.8]}
46... g5 {[%clk 0:00:04.7]} 47. b4 {[%clk 0:00:03.9]} 47... g4 {[%clk
0:00:04.4]} 48. Qf2 {[%clk 0:00:04.3]} 48... Qb1 {[%clk 0:00:02.2]} 49. Qf4+
{[%clk 0:00:03.6]} 49... Kg6 {[%clk 0:00:02.7]} 50. b5 {[%clk 0:00:04]} 50...
Qc2 {[%clk 0:00:01.5]} 51. Qf2 {[%clk 0:00:04]} 1-0

[Event "Late-Titled-Tuesday-Blitz-August-29-2023"]
[Site "Chess.com"]
[Date "2023.08.29"]
[Round "9"]
[White "cassoulet"]
[Black "CrushingKings"]
[Result "1-0"]
[WhiteElo "2740"]
[BlackElo "2571"]
[TimeControl "180+1"]
[EndTime "15:43:32 PDT"]
[Termination "cassoulet won by resignation"]

1. e4 {[%clk 0:01:50.5]} 1... g6 {[%clk 0:02:59.7]} 2. d4 {[%clk 0:01:50.2]}
2... Bg7 {[%clk 0:03:00.3]} 3. Nc3 {[%clk 0:01:50.8]} 3... c6 {[%clk 0:03:01]}
4. h4 {[%clk 0:01:51.3]} 4... d5 {[%clk 0:03:01.6]} 5. Nf3 {[%clk 0:01:51]} 5...
dxe4 {[%clk 0:03:01.4]} 6. Nxe4 {[%clk 0:01:51.9]} 6... Bg4 {[%clk 0:03:00.9]}
7. c3 {[%clk 0:01:52.4]} 7... Nf6 {[%clk 0:03:01.2]} 8. Ng3 {[%clk 0:01:52.1]}
8... Nbd7 {[%clk 0:02:57.3]} 9. Be2 {[%clk 0:01:51.4]} 9... Qc7 {[%clk
0:02:54.4]} 10. Bg5 {[%clk 0:01:47.2]} 10... O-O {[%clk 0:02:45]} 11. Qd2 {[%clk
0:01:44.4]} 11... e5 {[%clk 0:02:28.3]} 12. O-O-O {[%clk 0:01:43.9]} 12... exd4
{[%clk 0:02:18.6]} 13. Nxd4 {[%clk 0:01:44.8]} 13... Bxe2 {[%clk 0:02:18]} 14.
Ndxe2 {[%clk 0:01:45.7]} 14... Nc5 {[%clk 0:02:15.3]} 15. f3 {[%clk 0:01:35.2]}
15... Rad8 {[%clk 0:02:04.9]} 16. Qf4 {[%clk 0:01:35.2]} 16... Qxf4+ {[%clk
0:02:01.3]} 17. Nxf4 {[%clk 0:01:36.1]} 17... h6 {[%clk 0:01:45.5]} 18. Bxf6
{[%clk 0:01:35.8]} 18... Bxf6 {[%clk 0:01:44.6]} 19. Kc2 {[%clk 0:01:32]} 19...
h5 {[%clk 0:01:02.2]} 20. Nd3 {[%clk 0:01:28.7]} 20... Ne6 {[%clk 0:01:01.6]}
21. Ne4 {[%clk 0:01:28]} 21... Be7 {[%clk 0:01:01.1]} 22. g4 {[%clk 0:01:26.4]}
22... f5 {[%clk 0:01:00.3]} 23. gxf5 {[%clk 0:01:24]} 23... Rxf5 {[%clk
0:01:00.3]} 24. Rhg1 {[%clk 0:01:21.9]} 24... Kf7 {[%clk 0:01:00.1]} 25. f4
{[%clk 0:01:06]} 25... Nxf4 {[%clk 0:00:51.2]} 26. Nxf4 {[%clk 0:00:57.9]} 26...
Rxf4 {[%clk 0:00:50.1]} 27. Rxd8 {[%clk 0:00:57.9]} 27... Bxd8 {[%clk
0:00:50.6]} 28. Nd6+ {[%clk 0:00:57.8]} 28... Kg7 {[%clk 0:00:46.9]} 29. Nxb7
{[%clk 0:00:55.8]} 29... Bxh4 {[%clk 0:00:45.5]} 30. Na5 {[%clk 0:00:56]} 30...
Bf2 {[%clk 0:00:40.8]} 31. Rg2 {[%clk 0:00:55.4]} 31... h4 {[%clk 0:00:33.4]}
32. Nxc6 {[%clk 0:00:55.6]} 32... h3 {[%clk 0:00:33.8]} 33. Rh2 {[%clk
0:00:55.4]} 33... Rh4 {[%clk 0:00:32.6]} 34. Ne5 {[%clk 0:00:55.6]} 34... Bg3
{[%clk 0:00:31.3]} 35. Nf3 {[%clk 0:00:55.9]} 35... Bxh2 {[%clk 0:00:15.1]} 36.
Nxh4 {[%clk 0:00:55.6]} 36... Bg3 {[%clk 0:00:13.8]} 37. Nf3 {[%clk 0:00:54.4]}
37... g5 {[%clk 0:00:12.7]} 38. Nd4 {[%clk 0:00:51.4]} 38... h2 {[%clk 0:00:11]}
39. Nf5+ {[%clk 0:00:51.7]} 39... Kf6 {[%clk 0:00:09.8]} 40. Nxg3 {[%clk
0:00:52.6]} 40... Ke5 {[%clk 0:00:10.4]} 41. c4 {[%clk 0:00:48.9]} 41... Kf4
{[%clk 0:00:10.3]} 42. Nh1 {[%clk 0:00:47.3]} 42... Kf3 {[%clk 0:00:10.4]} 43.
c5 {[%clk 0:00:47.8]} 43... Kg2 {[%clk 0:00:11.3]} 44. c6 {[%clk 0:00:48.2]}
44... Kxh1 {[%clk 0:00:12.2]} 45. c7 {[%clk 0:00:48.8]} 45... Kg1 {[%clk
0:00:13.1]} 46. c8=Q {[%clk 0:00:49]} 46... h1=Q {[%clk 0:00:13.6]} 47. Qc5+
{[%clk 0:00:48.3]} 47... Kf1 {[%clk 0:00:12.8]} 48. Qf5+ {[%clk 0:00:46.7]}
48... Ke2 {[%clk 0:00:12.4]} 49. Qb5+ {[%clk 0:00:41.4]} 49... Kf2 {[%clk
0:00:12.1]} 50. Qxg5 {[%clk 0:00:40.7]} 50... Qc6+ {[%clk 0:00:12.1]} 51. Kd2
{[%clk 0:00:39.4]} 51... Qd6+ {[%clk 0:00:11.3]} 52. Kc3 {[%clk 0:00:39.8]}
52... Qc6+ {[%clk 0:00:11.1]} 53. Kb4 {[%clk 0:00:37.7]} 53... Qb6+ {[%clk
0:00:06.4]} 54. Qb5 {[%clk 0:00:37]} 54... Qd4+ {[%clk 0:00:07.1]} 55. Ka3
{[%clk 0:00:36.3]} 55... Qe3+ {[%clk 0:00:06.7]} 56. b3 {[%clk 0:00:36.2]} 56...
Qc1+ {[%clk 0:00:05.6]} 57. Ka4 {[%clk 0:00:36.2]} 57... Qc2 {[%clk 0:00:05.2]}
58. a3 {[%clk 0:00:34.2]} 58... Ke3 {[%clk 0:00:04.9]} 59. Qe5+ {[%clk
0:00:33.6]} 59... Kd2 {[%clk 0:00:03.6]} 60. Qh2+ {[%clk 0:00:33.3]} 60... Kd3
{[%clk 0:00:04]} 61. Qxc2+ {[%clk 0:00:32.7]} 61... Kxc2 {[%clk 0:00:04.8]} 62.
Kb4 {[%clk 0:00:33.2]} 62... Kb2 {[%clk 0:00:04.8]} 63. a4 {[%clk 0:00:33.4]}
63... Ka2 {[%clk 0:00:05.4]} 64. a5 {[%clk 0:00:33.8]} 64... Kb2 {[%clk
0:00:04.9]} 65. a6 {[%clk 0:00:34.1]} 65... Ka2 {[%clk 0:00:05.2]} 66. Ka4
{[%clk 0:00:34.4]} 66... Kb2 {[%clk 0:00:05.7]} 67. b4 {[%clk 0:00:34.7]} 67...
Kc3 {[%clk 0:00:06.2]} 68. b5 {[%clk 0:00:32.8]} 68... Kc4 {[%clk 0:00:06.8]}
69. b6 {[%clk 0:00:33.4]} 69... axb6 {[%clk 0:00:07]} 70. a7 {[%clk 0:00:34]}
70... b5+ {[%clk 0:00:07.9]} 71. Ka3 {[%clk 0:00:34.3]} 71... b4+ {[%clk
0:00:08.3]} 72. Kb2 {[%clk 0:00:34.4]} 1-0

[Event "Late-Titled-Tuesday-Blitz-August-29-2023"]
[Site "Chess.com"]
[Date "2023.08.29"]
[Round "9"]
[White "SHIVACalypso"]
[Black "ilushka"]
[Result "0-1"]
[WhiteElo "2503"]
[BlackElo "2398"]
[TimeControl "180+1"]
[EndTime "15:43:32 PDT"]
[Termination "ilushka won by checkmate"]

1. c4 {[%clk 0:03:00.9]} 1... c5 {[%clk 0:02:59.2]} 2. g3 {[%clk 0:03:01.1]}
2... g6 {[%clk 0:02:59.6]} 3. Bg2 {[%clk 0:03:02]} 3... Bg7 {[%clk 0:03:00.1]}
4. Nf3 {[%clk 0:03:02.9]} 4... Nc6 {[%clk 0:03:00.6]} 5. Nc3 {[%clk 0:03:02.7]}
5... d6 {[%clk 0:03:01.2]} 6. O-O {[%clk 0:03:01.9]} 6... e6 {[%clk 0:03:01.7]}
7. e3 {[%clk 0:02:59.6]} 7... Nge7 {[%clk 0:03:00.5]} 8. d4 {[%clk 0:02:59.6]}
8... O-O {[%clk 0:03:00.1]} 9. d5 {[%clk 0:02:58.4]} 9... Na5 {[%clk 0:03:00.5]}
10. Qe2 {[%clk 0:02:49.9]} 10... Re8 {[%clk 0:01:55.7]} 11. Rd1 {[%clk
0:02:48.1]} 11... Rb8 {[%clk 0:01:49.3]} 12. dxe6 {[%clk 0:02:41.5]} 12... Bxe6
{[%clk 0:01:49.1]} 13. Nd5 {[%clk 0:02:37.8]} 13... b5 {[%clk 0:01:38.9]} 14.
Nxe7+ {[%clk 0:02:32.9]} 14... Qxe7 {[%clk 0:01:39.8]} 15. cxb5 {[%clk
0:02:28.4]} 15... Nc4 {[%clk 0:01:28.3]} 16. a4 {[%clk 0:02:20.8]} 16... Na5
{[%clk 0:01:26.6]} 17. Ra3 {[%clk 0:02:13.8]} 17... Nb3 {[%clk 0:01:20.6]} 18.
e4 {[%clk 0:02:05.4]} 18... Nxc1 {[%clk 0:01:17.9]} 19. Rxc1 {[%clk 0:02:06.3]}
19... a6 {[%clk 0:01:17.8]} 20. e5 {[%clk 0:01:57.4]} 20... axb5 {[%clk
0:01:03]} 21. exd6 {[%clk 0:01:54.5]} 21... Qxd6 {[%clk 0:01:03.9]} 22. axb5
{[%clk 0:01:49.6]} 22... Bd7 {[%clk 0:00:56.6]} 23. Qc2 {[%clk 0:01:47]} 23...
Rxb5 {[%clk 0:00:53.6]} 24. Rd1 {[%clk 0:01:35.3]} 24... Qc7 {[%clk 0:00:50.2]}
25. Nd4 {[%clk 0:01:25.8]} 25... Bxd4 {[%clk 0:00:45.3]} 26. Rxd4 {[%clk
0:01:24.9]} 26... Re1+ {[%clk 0:00:45.3]} 27. Bf1 {[%clk 0:01:25.1]} 27... Bh3
{[%clk 0:00:42.9]} 28. Rd1 {[%clk 0:01:20.8]} 28... Qe5 {[%clk 0:00:24.1]} 29.
Raa1 {[%clk 0:00:32.8]} 29... Rxf1+ {[%clk 0:00:19.2]} 30. Rxf1 {[%clk
0:00:32.1]} 30... Bxf1 {[%clk 0:00:20.1]} 31. Kxf1 {[%clk 0:00:26.6]} 31... Rxb2
{[%clk 0:00:20.5]} 32. Qc4 {[%clk 0:00:23.9]} 32... Rxf2+ {[%clk 0:00:08.3]} 33.
Kxf2 {[%clk 0:00:21.9]} 33... Qxa1 {[%clk 0:00:08.9]} 34. Qxc5 {[%clk
0:00:20.7]} 34... Kg7 {[%clk 0:00:08.4]} 35. Kg2 {[%clk 0:00:20.2]} 35... h6
{[%clk 0:00:08.5]} 36. h4 {[%clk 0:00:19.9]} 36... Qb2+ {[%clk 0:00:06.2]} 37.
Kh3 {[%clk 0:00:18.1]} 37... Qf6 {[%clk 0:00:06.6]} 38. Qd5 {[%clk 0:00:18.1]}
38... Qf5+ {[%clk 0:00:06.6]} 39. Qxf5 {[%clk 0:00:18.2]} 39... gxf5 {[%clk
0:00:07.5]} 40. Kg2 {[%clk 0:00:17.8]} 40... Kf6 {[%clk 0:00:07.7]} 41. Kf3
{[%clk 0:00:18]} 41... Ke5 {[%clk 0:00:07.4]} 42. Ke3 {[%clk 0:00:18.6]} 42...
h5 {[%clk 0:00:05.1]} 43. Kf3 {[%clk 0:00:18.7]} 43... f4 {[%clk 0:00:04.8]} 44.
gxf4+ {[%clk 0:00:18.3]} 44... Kf5 {[%clk 0:00:05.4]} 45. Ke3 {[%clk 0:00:13.7]}
45... Kg4 {[%clk 0:00:05.7]} 46. Ke4 {[%clk 0:00:14.1]} 46... Kxh4 {[%clk
0:00:05.2]} 47. Kf3 {[%clk 0:00:11.7]} 47... f5 {[%clk 0:00:04.4]} 48. Ke3
{[%clk 0:00:07.9]} 48... Kg4 {[%clk 0:00:05.3]} 49. Kf2 {[%clk 0:00:07.3]} 49...
Kxf4 {[%clk 0:00:06.2]} 50. Kg2 {[%clk 0:00:08.1]} 50... Kg4 {[%clk 0:00:07.1]}
51. Kf2 {[%clk 0:00:09]} 51... f4 {[%clk 0:00:07.8]} 52. Kg2 {[%clk 0:00:09.7]}
52... f3+ {[%clk 0:00:08.7]} 53. Kh2 {[%clk 0:00:10.2]} 53... Kf4 {[%clk
0:00:09.6]} 54. Kg1 {[%clk 0:00:10.4]} 54... Kg3 {[%clk 0:00:10.5]} 55. Kh1
{[%clk 0:00:10.1]} 55... Kf2 {[%clk 0:00:10]} 56. Kh2 {[%clk 0:00:09.4]} 56...
Ke2 {[%clk 0:00:10.9]} 57. Kh3 {[%clk 0:00:07.3]} 57... f2 {[%clk 0:00:11.4]}
58. Kh2 {[%clk 0:00:06]} 58... f1=Q {[%clk 0:00:11.7]} 59. Kg3 {[%clk
0:00:06.3]} 59... Qf3+ {[%clk 0:00:11.6]} 60. Kh2 {[%clk 0:00:07.2]} 60... Qg4
{[%clk 0:00:11.8]} 61. Kh1 {[%clk 0:00:07.2]} 61... Kf2 {[%clk 0:00:12.1]} 62.
Kh2 {[%clk 0:00:07]} 62... Qh4# {[%clk 0:00:13]} 0-1

[Event "Late-Titled-Tuesday-Blitz-August-29-2023"]
[Site "Chess.com"]
[Date "2023.08.29"]
[Round "9"]
[White "kinga2008"]
[Black "wgraif"]
[Result "0-1"]
[WhiteElo "2413"]
[BlackElo "2536"]
[TimeControl "180+1"]
[EndTime "15:43:36 PDT"]
[Termination "wgraif won on time"]

1. e4 {[%clk 0:03:00.9]} 1... e5 {[%clk 0:02:57.5]} 2. Nf3 {[%clk 0:02:58.9]}
2... Bc5 {[%clk 0:02:56.8]} 3. d4 {[%clk 0:02:59.8]} 3... exd4 {[%clk
0:02:56.4]} 4. Bc4 {[%clk 0:02:59.3]} 4... Nf6 {[%clk 0:02:54.5]} 5. O-O {[%clk
0:02:57.8]} 5... d6 {[%clk 0:02:39]} 6. Nxd4 {[%clk 0:02:55]} 6... O-O {[%clk
0:02:34.1]} 7. Nc3 {[%clk 0:02:53.2]} 7... h6 {[%clk 0:02:23.6]} 8. h3 {[%clk
0:02:48.2]} 8... Re8 {[%clk 0:02:18.7]} 9. Re1 {[%clk 0:02:46.4]} 9... Nc6
{[%clk 0:01:56.2]} 10. Nxc6 {[%clk 0:02:41.3]} 10... bxc6 {[%clk 0:01:57.1]} 11.
Be3 {[%clk 0:02:39.5]} 11... Bb4 {[%clk 0:01:42.3]} 12. Bd4 {[%clk 0:02:34.4]}
12... Bb7 {[%clk 0:01:20.4]} 13. e5 {[%clk 0:02:30.7]} 13... Nd5 {[%clk
0:01:04.3]} 14. Qg4 {[%clk 0:02:12]} 14... Qg5 {[%clk 0:00:57.5]} 15. Qxg5
{[%clk 0:02:04.5]} 15... hxg5 {[%clk 0:00:57.7]} 16. exd6 {[%clk 0:02:00.3]}
16... Nxc3 {[%clk 0:00:34.1]} 17. bxc3 {[%clk 0:01:58.5]} 17... Bxd6 {[%clk
0:00:33.9]} 18. Rxe8+ {[%clk 0:01:56.1]} 18... Rxe8 {[%clk 0:00:33.5]} 19. Bxa7
{[%clk 0:01:56.8]} 19... c5 {[%clk 0:00:30.4]} 20. Rb1 {[%clk 0:01:55.8]} 20...
Be4 {[%clk 0:00:13.4]} 21. Re1 {[%clk 0:01:43.4]} 21... Kf8 {[%clk 0:00:12.5]}
22. Bb5 {[%clk 0:01:38.8]} 22... Bc6 {[%clk 0:00:10.5]} 23. Rxe8+ {[%clk
0:01:34.7]} 23... Bxe8 {[%clk 0:00:10.9]} 24. c4 {[%clk 0:01:09.1]} 24... Ke7
{[%clk 0:00:11.4]} 25. a4 {[%clk 0:01:05.6]} 25... Kd8 {[%clk 0:00:08.1]} 26. a5
{[%clk 0:01:05.4]} 26... Bd7 {[%clk 0:00:05.9]} 27. Bb8 {[%clk 0:00:50.5]} 27...
Kc8 {[%clk 0:00:05.2]} 28. Bxd7+ {[%clk 0:00:43.5]} 28... Kxd7 {[%clk
0:00:04.5]} 29. a6 {[%clk 0:00:40.4]} 29... Kc8 {[%clk 0:00:02.8]} 30. a7 {[%clk
0:00:41]} 30... Kb7 {[%clk 0:00:03.2]} 31. Kf1 {[%clk 0:00:41.7]} 31... Be5
{[%clk 0:00:01.1]} 32. Ke2 {[%clk 0:00:42.2]} 32... g6 {[%clk 0:00:01.6]} 33.
Kd3 {[%clk 0:00:41.7]} 33... f5 {[%clk 0:00:02.1]} 34. g4 {[%clk 0:00:40.1]}
34... Bd6 {[%clk 0:00:01.6]} 35. Ke3 {[%clk 0:00:37.1]} 35... Be5 {[%clk
0:00:02]} 36. Kf3 {[%clk 0:00:37.6]} 36... Bd6 {[%clk 0:00:02.4]} 37. Kg2 {[%clk
0:00:32.8]} 37... Be5 {[%clk 0:00:03]} 38. gxf5 {[%clk 0:00:33]} 38... gxf5
{[%clk 0:00:03.3]} 39. Kf3 {[%clk 0:00:21.2]} 39... Bd6 {[%clk 0:00:03.7]} 40.
Ke3 {[%clk 0:00:22.1]} 40... Be5 {[%clk 0:00:04]} 41. Kd3 {[%clk 0:00:23]} 41...
Bd6 {[%clk 0:00:04.5]} 42. Kc3 {[%clk 0:00:23.9]} 42... Be5+ {[%clk 0:00:04.9]}
43. Kb3 {[%clk 0:00:24.8]} 43... Bd6 {[%clk 0:00:05.4]} 44. Ka4 {[%clk
0:00:25.7]} 44... Be5 {[%clk 0:00:05.7]} 45. Kb5 {[%clk 0:00:26.6]} 45... Bd6
{[%clk 0:00:06.2]} 46. f3 {[%clk 0:00:25.7]} 46... f4 {[%clk 0:00:04]} 47. c3
{[%clk 0:00:21.5]} 47... c6+ {[%clk 0:00:03.4]} 48. Ka5 {[%clk 0:00:19.9]} 48...
Be7 {[%clk 0:00:04]} 49. Ka4 {[%clk 0:00:15.8]} 49... Bf6 {[%clk 0:00:04]} 50.
Kb3 {[%clk 0:00:16.1]} 50... Bg7 {[%clk 0:00:04.6]} 51. Kc2 {[%clk 0:00:12.9]}
51... Bf6 {[%clk 0:00:04]} 52. Kd3 {[%clk 0:00:13.6]} 52... Be7 {[%clk
0:00:04.6]} 53. Ke4 {[%clk 0:00:14]} 53... Bf6 {[%clk 0:00:05.3]} 54. Kf5 {[%clk
0:00:14]} 54... Be7 {[%clk 0:00:04.8]} 0-1

[Event "Late-Titled-Tuesday-Blitz-August-29-2023"]
[Site "Chess.com"]
[Date "2023.08.29"]
[Round "9"]
[White "jcreyes69"]
[Black "MYMChessAcademy"]
[Result "1-0"]
[WhiteElo "2357"]
[BlackElo "2234"]
[TimeControl "180+1"]
[EndTime "15:43:37 PDT"]
[Termination "jcreyes69 won by checkmate"]

1. e4 {[%clk 0:03:00.9]} 1... c5 {[%clk 0:02:59.3]} 2. Nf3 {[%clk 0:03:00.1]}
2... d6 {[%clk 0:02:59.4]} 3. c3 {[%clk 0:02:58.6]} 3... Nf6 {[%clk 0:02:57.9]}
4. h3 {[%clk 0:02:58.9]} 4... g6 {[%clk 0:02:57.8]} 5. Bd3 {[%clk 0:02:58]} 5...
Bg7 {[%clk 0:02:57]} 6. O-O {[%clk 0:02:57.7]} 6... O-O {[%clk 0:02:56.3]} 7.
Bc2 {[%clk 0:02:58.4]} 7... e5 {[%clk 0:02:54.6]} 8. d4 {[%clk 0:02:59]} 8...
cxd4 {[%clk 0:02:52.4]} 9. cxd4 {[%clk 0:02:59.9]} 9... Nc6 {[%clk 0:02:50.8]}
10. Nc3 {[%clk 0:02:58.3]} 10... a6 {[%clk 0:02:49.1]} 11. Be3 {[%clk
0:02:39.9]} 11... Nd7 {[%clk 0:02:42.8]} 12. d5 {[%clk 0:02:37.1]} 12... Ne7
{[%clk 0:02:42.2]} 13. Nd2 {[%clk 0:02:34.4]} 13... f5 {[%clk 0:02:40.6]} 14. f3
{[%clk 0:02:34.1]} 14... f4 {[%clk 0:02:37.1]} 15. Bf2 {[%clk 0:02:33.8]} 15...
g5 {[%clk 0:02:37.2]} 16. Nc4 {[%clk 0:02:33.6]} 16... Nf6 {[%clk 0:02:29]} 17.
a4 {[%clk 0:02:29.2]} 17... h5 {[%clk 0:02:28.4]} 18. Bb6 {[%clk 0:02:21.8]}
18... Qe8 {[%clk 0:01:47.4]} 19. Nxd6 {[%clk 0:02:18.7]} 19... Qg6 {[%clk
0:01:47.3]} 20. Nxc8 {[%clk 0:01:54.3]} 20... Nxc8 {[%clk 0:01:43]} 21. Bc5
{[%clk 0:01:54]} 21... Rd8 {[%clk 0:01:42.1]} 22. Qe2 {[%clk 0:01:33]} 22... g4
{[%clk 0:01:39]} 23. fxg4 {[%clk 0:01:33.1]} 23... hxg4 {[%clk 0:01:39.9]} 24.
hxg4 {[%clk 0:01:33.5]} 24... Nxg4 {[%clk 0:01:39.7]} 25. Rf3 {[%clk 0:01:32.8]}
25... Nd6 {[%clk 0:01:28.8]} 26. Rh3 {[%clk 0:01:25.1]} 26... Kf7 {[%clk
0:01:23.2]} 27. Bd1 {[%clk 0:01:18.3]} 27... Nf6 {[%clk 0:01:22.3]} 28. Bxd6
{[%clk 0:01:15.5]} 28... Rxd6 {[%clk 0:01:22.6]} 29. Qd3 {[%clk 0:01:06.3]}
29... Rg8 {[%clk 0:00:57.8]} 30. Bf3 {[%clk 0:00:52.4]} 30... Ng4 {[%clk
0:00:45]} 31. Bxg4 {[%clk 0:00:47.9]} 31... Qxg4 {[%clk 0:00:45.9]} 32. Qf3
{[%clk 0:00:47.3]} 32... Bf8 {[%clk 0:00:43.7]} 33. Qxg4 {[%clk 0:00:46.4]}
33... Rxg4 {[%clk 0:00:44.6]} 34. Kf2 {[%clk 0:00:22.2]} 34... Rdg6 {[%clk
0:00:39.4]} 35. Rh2 {[%clk 0:00:21.9]} 35... Bc5+ {[%clk 0:00:34.9]} 36. Kf1
{[%clk 0:00:22]} 36... f3 {[%clk 0:00:33.1]} 37. gxf3 {[%clk 0:00:11.9]} 37...
Rg1+ {[%clk 0:00:33]} 38. Ke2 {[%clk 0:00:12.8]} 38... Rxa1 {[%clk 0:00:32.1]}
39. Rh7+ {[%clk 0:00:13.6]} 39... Rg7 {[%clk 0:00:29.9]} 40. Rh5 {[%clk
0:00:14.4]} 40... Bd4 {[%clk 0:00:21.1]} 41. Kd3 {[%clk 0:00:14.7]} 41... Rg3
{[%clk 0:00:12.7]} 42. Rf5+ {[%clk 0:00:15]} 42... Ke7 {[%clk 0:00:12.2]} 43.
Ne2 {[%clk 0:00:15.4]} 43... Rg2 {[%clk 0:00:10.5]} 44. Nxd4 {[%clk 0:00:15]}
44... Rd1+ {[%clk 0:00:10.1]} 45. Kc3 {[%clk 0:00:14.5]} 45... Rxd4 {[%clk
0:00:10.4]} 46. Rxe5+ {[%clk 0:00:14.3]} 46... Kd6 {[%clk 0:00:09.6]} 47. Kxd4
{[%clk 0:00:10.2]} 47... Rd2+ {[%clk 0:00:09.8]} 48. Kc3 {[%clk 0:00:07.8]}
48... Rf2 {[%clk 0:00:08.5]} 49. Re6+ {[%clk 0:00:07.9]} 49... Kd7 {[%clk
0:00:08.4]} 50. Rf6 {[%clk 0:00:08.2]} 50... Re2 {[%clk 0:00:08.1]} 51. b4
{[%clk 0:00:07.5]} 51... Re3+ {[%clk 0:00:09]} 52. Kc4 {[%clk 0:00:07.7]} 52...
Ra3 {[%clk 0:00:09.7]} 53. a5 {[%clk 0:00:07.4]} 53... Re3 {[%clk 0:00:09.1]}
54. Kc5 {[%clk 0:00:07.8]} 54... Rc3+ {[%clk 0:00:08.7]} 55. Kb6 {[%clk
0:00:08]} 55... Rb3 {[%clk 0:00:08.5]} 56. Kxb7 {[%clk 0:00:08.5]} 56... Rxb4+
{[%clk 0:00:08.9]} 57. Kxa6 {[%clk 0:00:09.4]} 57... Ra4 {[%clk 0:00:07.6]} 58.
Re6 {[%clk 0:00:08.7]} 58... Rb4 {[%clk 0:00:07.9]} 59. f4 {[%clk 0:00:09]}
59... Rb8 {[%clk 0:00:08.5]} 60. f5 {[%clk 0:00:09.2]} 60... Ra8+ {[%clk
0:00:09.4]} 61. Kb5 {[%clk 0:00:09.5]} 61... Rb8+ {[%clk 0:00:10.3]} 62. Rb6
{[%clk 0:00:09.2]} 62... Rc8 {[%clk 0:00:11.2]} 63. e5 {[%clk 0:00:07.6]} 63...
Rc1 {[%clk 0:00:10.9]} 64. f6 {[%clk 0:00:06]} 64... Rb1+ {[%clk 0:00:10.6]} 65.
Ka6 {[%clk 0:00:06]} 65... Ra1 {[%clk 0:00:11.5]} 66. e6+ {[%clk 0:00:05.7]}
66... Ke8 {[%clk 0:00:11.9]} 67. Rb8# {[%clk 0:00:04.4]} 1-0